fUSD/lending_fUSD_20260408
["ID","MTS","AMOUNT","RATE_DAILY","PERIOD"]
[420090394,1775664641642,-1138.581987,0.00011318,2]
[420090395,1775664641652,-823.0,0.0001134,2]
[420090396,1775664641663,-3292.0,0.0001134,2]
[420090397,1775664641673,-3000.0,0.00011342,2]
[420090398,1775664641683,-3000.0,0.00011342,2]
[420090399,1775664641693,-1886.55121869,0.00011342,2]
[420090400,1775664641703,-3000.0,0.00011342,2]
[420090401,1775664641712,-500.0,0.00011348,3]
[420090402,1775664641722,-725.43,0.00011348,2]
[420090403,1775664641732,-2000.0,0.00011348,2]
[420090404,1775664641742,-250.0,0.00011366,2]
[420090405,1775664641752,-151.0,0.00011372,2]
[420090406,1775664641762,-303.46,0.00011416,2]
[420090407,1775664641772,-531.623985,0.00011421,2]
[420090408,1775664641782,-2519.581614,0.00011421,2]
[420090409,1775664641791,-823.0,0.00011448,2]
[420090410,1775664641801,-736.0,0.00011449,2]
[420090411,1775664641812,-4881.62,0.00011507,2]
[420090412,1775664641823,-172.714362,0.00011588,2]
[420090413,1775664641832,-150.0,0.00011613,2]
[420090414,1775664641842,-501.73893264,0.00011621,2]
[420090415,1775664641851,-150.0,0.00011639,2]
[420090416,1775664641861,-200.0,0.00011644,2]
[420090417,1775664641871,-1337.30371513,0.00011644,2]
[420090418,1775664641880,-160.0,0.00011646,2]
[420090419,1775664641890,-2621.34896,0.00011646,2]
[420090420,1775664641900,-5082.69792,0.00011646,2]
[420090421,1775664641909,-1895.0,0.00011674,5]
[420090422,1775664641919,-10768.24818675,0.00011684,2]
[420090423,1775664641929,-598.8525724,0.00011744,2]
[420090424,1775664641938,-2517.45482461,0.00011784,2]
[420090425,1775664641947,-1000.0,0.00011855,2]
[420090426,1775664641957,-303.46,0.00011872,2]
[420090427,1775664641967,-244.407113,0.00011884,2]
[420090428,1775664641977,-1328.095214,0.00011884,2]
[420090429,1775664641986,-2233.66702618,0.0001189,2]
[420090430,1775664641996,-3500.0,0.0001189,2]
[420090431,1775664642007,-2713.60218691,0.0001189,2]
[420090432,1775664642016,-1117.96912872,0.00012066,2]
[420090433,1775664642026,-200.0,0.00012192,2]
[420090434,1775664642035,-1386.78395259,0.00012192,2]
[420090435,1775664642045,-198.8054,0.000122,2]
[420090436,1775664642055,-304.32444499,0.00012211,2]
[420090437,1775664642065,-3574.566763,0.00012228,2]
[420090438,1775664642075,-1000.0,0.00012309,2]
[420090439,1775664642085,-303.46,0.00012329,2]
[420090440,1775664642095,-2013.3582935,0.00012438,2]
[420090441,1775664642105,-1152.0,0.00012474,2]
[420090442,1775664642116,-4609.0,0.00012474,2]
[420090443,1775664642126,-276.444472,0.00012509,2]
[420090444,1775664642136,-1310.182439,0.00012509,2]
[420090445,1775664642146,-1252.0,0.00012593,2]
[420090446,1775664642155,-411.0,0.00012593,2]
[420090447,1775664642165,-578.20924308,0.00012594,2]
[420090448,1775664642175,-200.0,0.00012594,2]
[420090449,1775664642184,-500.0,0.00012594,2]
[420090450,1775664642194,-8260.13072239,0.00012594,2]
[420090451,1775664642203,-181.08010149,0.00012594,2]
[420090452,1775664642213,-623.58710448,0.00012594,2]
[420090453,1775664642223,-151.0,0.00012594,2]
[420090454,1775664642232,-1235.18214925,0.00012594,2]
[420090455,1775664642242,-151.0,0.00012594,2]
[420090456,1775664642251,-158.44511549,0.00012594,2]
[420090457,1775664642261,-743.50770149,0.00012594,2]
[420090458,1775664642270,-181.08010149,0.00012594,2]
[420090459,1775664642280,-1500.0,0.00012594,2]
[420090460,1775664642289,-1500.0,0.00012594,2]
[420090461,1775664642299,-1500.0,0.00012594,2]
[420090462,1775664642309,-1500.0,0.00012594,2]
[420090463,1775664642318,-1500.0,0.00012594,2]
[420090464,1775664642328,-1500.0,0.00012594,2]
[420090465,1775664642337,-151.0,0.00012594,2]
[420090466,1775664642347,-160.62835242,0.00012594,2]
[420090467,1775664642356,-174.61919141,0.00012594,2]
[420090468,1775664642366,-599.60298507,0.00012594,2]
[420090469,1775664642375,-285.62441693,0.00012594,2]
[420090470,1775664642385,-181.08010149,0.00012594,2]
[420090471,1775664642395,-1500.0,0.00012594,2]
[420090472,1775664642404,-170.0,0.00012594,2]
[420090473,1775664642414,-1532.75885711,0.00012594,2]
[420090474,1775664642423,-170.0,0.00012594,2]
[420090475,1775664642433,-170.0,0.00012594,2]
[420090476,1775664642442,-170.0,0.00012594,2]
[420090477,1775664642452,-170.0,0.00012594,2]
[420090478,1775664642462,-170.0,0.00012594,2]
[420090479,1775664642472,-170.0,0.00012594,2]
[420090480,1775664642482,-170.0,0.00012594,2]
[420090481,1775664642492,-170.0,0.00012594,2]
[420090482,1775664642502,-170.0,0.00012594,2]
[420090483,1775664642512,-170.0,0.00012594,2]
[420090484,1775664642522,-170.0,0.00012594,2]
[420090485,1775664642532,-170.0,0.00012594,2]
[420090486,1775664642542,-170.0,0.00012594,2]
[420090487,1775664642552,-170.0,0.00012594,2]
[420090488,1775664642562,-500.0,0.00012649,2]
[420090489,1775664642572,-8565.75555911,0.00012649,2]
[420090490,1775664642582,-151.0,0.00012649,2]
[420090491,1775664642591,-500.0,0.00012704,2]
[420090492,1775664642601,-8882.6885148,0.00012704,2]
[420090493,1775664642610,-151.0,0.00012704,2]
[420090494,1775664642620,-376.36,0.00012727,2]
[420090495,1775664642630,-10768.24818675,0.00012738,2]
[420090496,1775664642640,-151.0,0.00012739,2]
[420090497,1775664642650,-200.0,0.0001274,2]
[420090498,1775664642659,-1438.09495884,0.0001274,2]
[420090499,1775664642668,-500.0,0.00012759,2]
[420090500,1775664642678,-7419.93871538,0.00012759,2]
[420090501,1775664642687,-151.0,0.00012759,2]
[420090502,1775664642697,-2000.0,0.00012766,2]
[420090503,1775664642706,-500.0,0.00012814,2]
[420090504,1775664642716,-151.0,0.00012814,2]
[420090505,1775664642726,-500.0,0.00012815,2]
[420090506,1775664642736,-500.0,0.00012869,2]
[420090507,1775664642746,-151.0,0.00012869,2]
[420090508,1775664642755,-500.0,0.00012924,2]
[420090509,1775664642764,-151.0,0.00012924,2]
[420090510,1775664642774,-500.0,0.00012979,2]
[420090511,1775664642784,-151.0,0.00012979,2]
[420090512,1775664642794,-253.29,0.0001299,2]
[420090513,1775664642804,-100103.49272567,0.00012999,2]
[420090514,1775664642814,-460.406341,0.00013015,2]
[420090515,1775664642823,-500.0,0.00013034,2]
[420090516,1775664642833,-151.0,0.00013034,2]
[420090517,1775664642843,-500.0,0.00013089,2]
[420090518,1775664642852,-151.0,0.00013089,2]
[420090519,1775664642862,-501.0,0.000131,2]
[420090520,1775664642872,-200.0,0.00013142,2]
[420090521,1775664642882,-187.78006525,0.00013142,2]
[420090522,1775664642892,-1280.88388878,0.00013142,2]
[420090523,1775664642902,-771.01748645,0.00013142,2]
[420090524,1775664642912,-181.08010149,0.00013142,2]
[420090525,1775664642922,-591.41950389,0.00013142,2]
[420090526,1775664642933,-500.0,0.00013144,2]
[420090527,1775664642943,-151.0,0.00013144,2]
[420090528,1775664642953,-500.0,0.00013199,2]
[420090529,1775664642963,-151.0,0.00013199,2]
[420090530,1775664642975,-500.0,0.00013254,2]
[420090531,1775664642985,-151.0,0.00013254,2]
[420090532,1775664642995,-1295.67353,0.00013281,2]
[420090533,1775664643005,-200.0,0.00013288,2]
[420090534,1775664643015,-1620.66114049,0.00013288,2]
[420090535,1775664643026,-500.0,0.00013309,2]
[420090536,1775664643037,-151.0,0.00013309,2]
[420090537,1775664643047,-160.0,0.00013312,2]
[420090538,1775664643058,-160.0,0.00013312,2]
[420090539,1775664643069,-500.0,0.00013364,2]
[420090540,1775664643079,-151.0,0.00013364,2]
[420090541,1775664643088,-1239.183144,0.00013393,2]
[420090542,1775664643098,-255.780454,0.00013474,2]
[420090543,1775664643108,-711.947154,0.00013598,2]
[420090544,1775664643119,-228.8742,0.000136,2]
[420090545,1775664643130,-500.0,0.0001362,2]
[420090546,1775664643141,-500.0,0.0001362,2]
[420090547,1775664643153,-200.0,0.0001369,2]
[420090548,1775664643163,-194.72792766,0.0001369,2]
[420090549,1775664643173,-1328.27659266,0.0001369,2]
[420090550,1775664643183,-799.54513345,0.0001369,2]
[420090551,1775664643194,-187.78006525,0.0001369,2]
[420090552,1775664643205,-500.0,0.00013698,2]
[420090553,1775664643217,-500.03954585,0.00013698,2]
[420090554,1775664643227,-500.0,0.00013698,2]
[420090555,1775664643237,-500.0,0.00013698,2]
[420090556,1775664643247,-500.0,0.00013698,2]
[420090557,1775664643257,-500.0,0.00013698,2]
[420090558,1775664643266,-500.0,0.00013698,2]
[420090559,1775664643277,-500.0,0.00013698,2]
[420090560,1775664643287,-500.0,0.00013698,2]
[420090561,1775664643297,-500.0,0.00013698,2]
[420090562,1775664643308,-500.0,0.00013698,2]
[420090563,1775664643319,-500.0,0.00013698,2]
[420090564,1775664643329,-500.0,0.00013698,2]
[420090565,1775664643339,-500.0,0.00013698,2]
[420090566,1775664643349,-500.0,0.00013698,2]
[420090567,1775664643360,-500.0,0.00013698,2]
[420090568,1775664643370,-500.0,0.00013698,2]
[420090569,1775664643380,-500.0,0.00013698,2]
[420090570,1775664643391,-500.0,0.00013698,2]
[420090571,1775664643401,-500.0,0.00013698,2]
[420090572,1775664643412,-562.38643831,0.00013698,2]
[420090573,1775664643423,-420.19790691,0.00013698,2]
[420090574,1775664643434,-500.0,0.00013698,2]
[420090575,1775664643445,-500.0,0.00013698,2]
[420090576,1775664643456,-500.0,0.00013698,2]
[420090577,1775664643466,-500.0,0.00013698,2]
[420090578,1775664643477,-500.0,0.00013698,2]
[420090579,1775664643487,-500.0,0.00013698,2]
[420090580,1775664643497,-500.0,0.00013698,2]
[420090581,1775664643508,-500.0,0.00013698,2]
[420090582,1775664643519,-500.0,0.00013698,2]
[420090583,1775664643530,-500.0,0.00013698,2]
[420090584,1775664643540,-500.0,0.00013698,2]
[420090585,1775664643551,-500.0,0.00013698,2]
[420090586,1775664643562,-500.0,0.00013698,2]
[420090587,1775664643572,-500.0,0.00013698,2]
[420090588,1775664643582,-500.0,0.00013698,2]
[420090589,1775664643593,-500.0,0.00013698,2]
[420090590,1775664643604,-500.0,0.00013698,2]
[420090591,1775664643615,-500.0,0.00013698,2]
[420090592,1775664643627,-467.66178343,0.00013698,2]
[420090593,1775664643637,-500.0,0.00013698,2]
[420090594,1775664643648,-500.0,0.00013698,2]
[420090595,1775664643658,-500.0,0.00013698,2]
[420090596,1775664643668,-500.0,0.00013698,2]
[420090597,1775664643679,-500.0,0.00013698,2]
[420090598,1775664643690,-500.0,0.00013698,2]
[420090599,1775664643700,-500.0,0.00013698,2]
[420090600,1775664643710,-500.0,0.00013698,2]
[420090601,1775664643721,-542.71692042,0.00013698,2]
[420090602,1775664643732,-563.2,0.00013698,2]
[420090603,1775664643743,-563.2,0.00013698,2]
[420090604,1775664643753,-563.2,0.00013698,2]
[420090605,1775664643763,-563.2,0.00013698,2]
[420090606,1775664643773,-563.2,0.00013698,2]
[420090607,1775664643783,-563.2,0.00013698,2]
[420090608,1775664643794,-563.2,0.00013698,2]
[420090609,1775664643804,-563.2,0.00013698,2]
[420090610,1775664643813,-563.2,0.00013698,2]
[420090611,1775664643824,-563.2,0.00013698,2]
[420090612,1775664643833,-563.2,0.00013698,2]
[420090613,1775664643844,-563.2,0.00013698,2]
[420090614,1775664643854,-563.2,0.00013698,2]
[420090615,1775664643864,-563.2,0.00013698,2]
[420090616,1775664643876,-563.2,0.00013698,2]
[420090617,1775664643887,-563.2,0.00013698,2]
[420090618,1775664643897,-563.2,0.00013698,2]
[420090619,1775664643907,-563.2,0.00013698,2]
[420090620,1775664643917,-563.2,0.00013698,2]
[420090621,1775664643927,-563.2,0.00013698,2]
[420090622,1775664643938,-563.2,0.00013698,2]
[420090623,1775664643948,-563.2,0.00013698,2]
[420090624,1775664643958,-563.2,0.00013698,2]
[420090625,1775664643969,-563.2,0.00013698,2]
[420090626,1775664643979,-500.0,0.00013698,2]
[420090627,1775664643990,-500.0,0.00013698,2]
[420090628,1775664644000,-500.0,0.00013698,2]
[420090629,1775664644010,-500.0,0.00013698,2]
[420090630,1775664644020,-226.76167304,0.00013698,2]
[420090631,1775664644029,-553.39225555,0.00013698,2]
[420090632,1775664644040,-500.0,0.00013698,2]
[420090633,1775664644050,-500.0,0.00013698,2]
[420090634,1775664644060,-633.831471,0.00013698,2]
[420090635,1775664644070,-760.79,0.00013698,2]
[420090636,1775664644081,-760.79,0.00013698,2]
[420090639,1775664644091,-760.79,0.00013698,2]
[420090641,1775664644102,-760.79,0.00013698,2]
[420090643,1775664644112,-760.79,0.00013698,2]
[420090645,1775664644122,-760.79,0.00013698,2]
[420090646,1775664644132,-760.79,0.00013698,2]
[420090647,1775664644143,-760.79,0.00013698,2]
[420090648,1775664644153,-760.79,0.00013698,2]
[420090649,1775664644163,-760.79,0.00013698,2]
[420090650,1775664644173,-760.79,0.00013698,2]
[420090651,1775664644183,-760.79,0.00013698,2]
[420090652,1775664644193,-760.79,0.00013698,2]
[420090653,1775664644204,-760.79,0.00013698,2]
[420090654,1775664644214,-760.79,0.00013698,2]
[420090655,1775664644224,-760.79,0.00013698,2]
[420090656,1775664644234,-760.79,0.00013698,2]
[420090657,1775664644244,-760.79,0.00013698,2]
[420090658,1775664644255,-760.79,0.00013698,2]
[420090659,1775664644265,-760.79,0.00013698,2]
[420090660,1775664644275,-760.79,0.00013698,2]
[420090661,1775664644284,-760.79,0.00013698,2]
[420090662,1775664644294,-760.79,0.00013698,2]
[420090663,1775664644304,-760.85,0.00013698,2]
[420090664,1775664644314,-500.0,0.00013698,2]
[420090665,1775664644324,-500.0,0.00013698,2]
[420090666,1775664644333,-500.0,0.00013698,2]
[420090667,1775664644344,-500.0,0.00013698,2]
[420090668,1775664644353,-500.0,0.00013698,2]
[420090669,1775664644363,-454.40497159,0.00013698,2]
[420090670,1775664644373,-500.0,0.00013698,2]
[420090671,1775664644383,-500.0,0.00013698,2]
[420090672,1775664644393,-500.0,0.00013698,2]
[420090673,1775664644403,-500.0,0.00013698,2]
[420090674,1775664644412,-500.0,0.00013698,2]
[420090675,1775664644422,-500.0,0.00013698,2]
[420090676,1775664644432,-500.0,0.00013698,2]
[420090677,1775664644442,-500.0,0.00013698,2]
[420090678,1775664644452,-500.0,0.00013698,2]
[420090679,1775664644462,-500.0,0.00013698,2]
[420090680,1775664644473,-500.0,0.00013698,2]
[420090681,1775664644484,-500.0,0.00013698,2]
[420090682,1775664644494,-500.0,0.00013698,2]
[420090683,1775664644504,-500.0,0.00013698,2]
[420090684,1775664644514,-500.0,0.00013698,2]
[420090685,1775664644523,-500.0,0.00013698,2]
[420090686,1775664644534,-500.0,0.00013698,2]
[420090687,1775664644544,-500.0,0.00013698,2]
[420090688,1775664644554,-433.12,0.00013698,2]
[420090689,1775664644565,-500.0,0.00013698,2]
[420090690,1775664644575,-500.0,0.00013698,2]
[420090691,1775664644585,-500.0,0.00013698,2]
[420090692,1775664644595,-500.0,0.00013698,2]
[420090693,1775664644605,-500.0,0.00013698,2]
[420090694,1775664644615,-500.0,0.00013698,2]
[420090695,1775664644625,-500.0,0.00013698,2]
[420090696,1775664644635,-500.0,0.00013698,2]
[420090697,1775664644645,-500.0,0.00013698,2]
[420090698,1775664644655,-500.0,0.00013698,2]
[420090699,1775664644664,-500.0,0.00013698,2]
[420090700,1775664644674,-500.0,0.00013698,2]
[420090701,1775664644684,-500.0,0.00013698,2]
[420090702,1775664644695,-500.0,0.00013698,2]
[420090703,1775664644705,-392.00957995,0.00013698,2]
[420090704,1775664644714,-500.0,0.00013698,2]
[420090705,1775664644724,-500.0,0.00013698,2]
[420090706,1775664644734,-500.0,0.00013698,2]
[420090707,1775664644744,-500.0,0.00013698,2]
[420090708,1775664644755,-500.0,0.00013698,2]
[420090709,1775664644765,-500.0,0.00013698,2]
[420090710,1775664644775,-500.0,0.00013698,2]
[420090711,1775664644785,-500.0,0.00013698,2]
[420090712,1775664644795,-500.0,0.00013698,2]
[420090713,1775664644805,-500.0,0.00013698,2]
[420090714,1775664644814,-500.0,0.00013698,2]
[420090715,1775664644824,-500.0,0.00013698,2]
[420090716,1775664644834,-500.0,0.00013698,2]
[420090717,1775664644844,-644.24464926,0.00013698,2]
[420090718,1775664644854,-500.0,0.00013698,2]
[420090719,1775664644865,-500.0,0.00013698,2]
[420090720,1775664644874,-500.0,0.00013698,2]
[420090721,1775664644883,-500.0,0.00013698,2]
[420090722,1775664644893,-500.0,0.00013698,2]
[420090723,1775664644903,-500.0,0.00013698,2]
[420090724,1775664644913,-500.0,0.00013698,2]
[420090725,1775664644923,-500.0,0.00013698,2]
[420090726,1775664644933,-500.0,0.00013698,2]
[420090727,1775664644943,-500.0,0.00013698,2]
[420090728,1775664644952,-500.0,0.00013698,2]
[420090729,1775664644962,-500.0,0.00013698,2]
[420090730,1775664644971,-500.0,0.00013698,2]
[420090731,1775664644981,-500.0,0.00013698,2]
[420090732,1775664644990,-522.8150328,0.00013698,2]
[420090733,1775664645336,-500.0,0.00013698,2]
[420090734,1775664645348,-500.0,0.00013698,2]
[420090735,1775664645359,-500.0,0.00013698,2]
[420090736,1775664645370,-500.0,0.00013698,2]
[420090737,1775664645380,-500.0,0.00013698,2]
[420090738,1775664645391,-500.0,0.00013698,2]
[420090739,1775664645400,-500.0,0.00013698,2]
[420090740,1775664645409,-500.0,0.00013698,2]
[420090741,1775664645419,-500.0,0.00013698,2]
[420090742,1775664645429,-637.2484516,0.00013698,2]
[420090743,1775664645437,-671.27,0.00013698,2]
[420090744,1775664645446,-671.27,0.00013698,2]
[420090745,1775664645456,-671.27,0.00013698,2]
[420090746,1775664645466,-671.27,0.00013698,2]
[420090747,1775664645477,-671.27,0.00013698,2]
[420090748,1775664645488,-671.27,0.00013698,2]
[420090749,1775664645499,-671.27,0.00013698,2]
[420090750,1775664645511,-671.27,0.00013698,2]
[420090751,1775664645522,-671.27,0.00013698,2]
[420090752,1775664645533,-671.27,0.00013698,2]
[420090753,1775664645543,-671.27,0.00013698,2]
[420090754,1775664645554,-671.27,0.00013698,2]
[420090755,1775664645565,-671.27,0.00013698,2]
[420090756,1775664645576,-671.27,0.00013698,2]
[420090757,1775664645588,-671.27,0.00013698,2]
[420090758,1775664645600,-671.27,0.00013698,2]
[420090759,1775664645611,-671.27,0.00013698,2]
[420090760,1775664645622,-671.27,0.00013698,2]
[420090761,1775664645632,-671.27,0.00013698,2]
[420090762,1775664645642,-671.27,0.00013698,2]
[420090763,1775664645652,-671.27,0.00013698,2]
[420090764,1775664645663,-671.27,0.00013698,2]
[420090765,1775664645673,-671.27,0.00013698,2]
[420090766,1775664645683,-671.33,0.00013698,2]
[420090767,1775664645693,-500.0,0.00013698,2]
[420090768,1775664645703,-500.0,0.00013698,2]
[420090769,1775664645714,-500.0,0.00013698,2]
[420090770,1775664645726,-500.0,0.00013698,2]
[420090771,1775664645737,-500.0,0.00013698,2]
[420090772,1775664645748,-500.0,0.00013698,2]
[420090773,1775664645759,-500.0,0.00013698,2]
[420090774,1775664645771,-500.0,0.00013698,2]
[420090775,1775664645782,-500.0,0.00013698,2]
[420090777,1775664645793,-500.0,0.00013698,2]
[420090778,1775664645804,-500.0,0.00013698,2]
[420090779,1775664645815,-500.0,0.00013698,2]
[420090780,1775664645829,-500.0,0.00013698,2]
[420090781,1775664645841,-223.3967903,0.00013698,2]
[420090782,1775664645851,-500.0,0.00013698,2]
[420090783,1775664645862,-500.0,0.00013698,2]
[420090784,1775664645872,-500.0,0.00013698,2]
[420090785,1775664645884,-500.0,0.00013698,2]
[420090786,1775664645894,-500.0,0.00013698,2]
[420090787,1775664645905,-500.0,0.00013698,2]
[420090788,1775664645918,-500.0,0.00013698,2]
[420090789,1775664645929,-500.0,0.00013698,2]
[420090790,1775664645940,-500.0,0.00013698,2]
[420090791,1775664645950,-500.14075642,0.00013698,2]
[420090792,1775664645961,-500.0,0.00013698,2]
[420090793,1775664645972,-500.0,0.00013698,2]
[420090794,1775664645981,-500.0,0.00013698,2]
[420090795,1775664645991,-500.0,0.00013698,2]
[420090796,1775664646001,-500.0,0.00013698,2]
[420090797,1775664646012,-500.0,0.00013698,2]
[420090798,1775664646023,-500.0,0.00013698,2]
[420090799,1775664646033,-500.0,0.00013698,2]
[420090800,1775664646044,-500.0,0.00013698,2]
[420090801,1775664646055,-500.0,0.00013698,2]
[420090802,1775664646066,-500.0,0.00013698,2]
[420090803,1775664646077,-500.0,0.00013698,2]
[420090804,1775664646087,-500.0,0.00013698,2]
[420090805,1775664646098,-500.0,0.00013698,2]
[420090806,1775664646109,-500.0,0.00013698,2]
[420090807,1775664646121,-500.0,0.00013698,2]
[420090808,1775664646131,-500.0,0.00013698,2]
[420090809,1775664646142,-500.0,0.00013698,2]
[420090810,1775664646152,-500.0,0.00013698,2]
[420090811,1775664646163,-500.0,0.00013698,2]
[420090812,1775664646174,-500.0,0.00013698,2]
[420090813,1775664646185,-500.0,0.00013698,2]
[420090814,1775664646196,-500.0,0.00013698,2]
[420090815,1775664646207,-500.0,0.00013698,2]
[420090816,1775664646219,-500.0,0.00013698,2]
[420090817,1775664646230,-500.0,0.00013698,2]
[420090818,1775664646241,-500.0,0.00013698,2]
[420090819,1775664646253,-500.0,0.00013698,2]
[420090820,1775664646264,-248.76967055,0.00013698,2]
[420090821,1775664646275,-514.41880912,0.00013698,2]
[420090823,1775664646286,-500.0,0.00013698,2]
[420090824,1775664646297,-500.0,0.00013698,2]
[420090825,1775664646308,-500.0,0.00013698,2]
[420090826,1775664646318,-500.0,0.00013698,2]
[420090827,1775664646329,-500.0,0.00013698,2]
[420090828,1775664646339,-500.0,0.00013698,2]
[420090829,1775664646349,-500.0,0.00013698,2]
[420090830,1775664646360,-500.0,0.00013698,2]
[420090831,1775664646370,-500.0,0.00013698,2]
[420090832,1775664646384,-500.0,0.00013698,2]
[420090833,1775664646394,-500.0,0.00013698,2]
[420090834,1775664646404,-500.0,0.00013698,2]
[420090835,1775664646415,-500.0,0.00013698,2]
[420090836,1775664646426,-500.0,0.00013698,2]
[420090837,1775664646437,-500.0,0.00013698,2]
[420090838,1775664646447,-500.0,0.00013698,2]
[420090839,1775664646458,-504.74596653,0.00013698,2]
[420090840,1775664646470,-500.0,0.00013698,2]
[420090841,1775664646481,-500.0,0.00013698,2]
[420090842,1775664646492,-500.0,0.00013698,2]
[420090843,1775664646503,-500.0,0.00013698,2]
[420090844,1775664646514,-500.0,0.00013698,2]
[420090845,1775664646525,-500.0,0.00013698,2]
[420090846,1775664646535,-500.0,0.00013698,2]
[420090847,1775664646546,-500.0,0.00013698,2]
[420090848,1775664646557,-500.0,0.00013698,2]
[420090849,1775664646567,-500.0,0.00013698,2]
[420090850,1775664646578,-500.0,0.00013698,2]
[420090851,1775664646589,-500.0,0.00013698,2]
[420090852,1775664646599,-153.0649219,0.00013698,2]
[420090853,1775664646611,-500.0,0.00013698,2]
[420090854,1775664646621,-500.0,0.00013698,2]
[420090855,1775664646632,-500.0,0.00013698,2]
[420090857,1775664646642,-500.0,0.00013698,2]
[420090859,1775664646653,-500.0,0.00013698,2]
[420090861,1775664646664,-500.0,0.00013698,2]
[420090862,1775664646674,-500.0,0.00013698,2]
[420090863,1775664646685,-615.24875447,0.00013698,2]
[420090864,1775664646696,-500.0,0.00013698,2]
[420090865,1775664646706,-500.0,0.00013698,2]
[420090866,1775664646717,-500.45174561,0.00013698,2]
[420090867,1775664646728,-150.0,0.00013699,2]
[420090868,1775664646739,-150.0,0.00013699,2]
[420090869,1775664646750,-150.0,0.00013699,2]
[420090870,1775664646760,-150.0,0.00013699,2]
[420090871,1775664646770,-150.0,0.00013699,2]
[420090872,1775664646782,-151.0,0.00013699,2]
[420090873,1775664646793,-204.71,0.00013699,2]
[420090874,1775664646804,-670.01,0.00013699,2]
[420090875,1775664646814,-219.77,0.00013699,2]
[420090876,1775664646825,-353.74,0.00013699,2]
[420090877,1775664646834,-294.78,0.00013699,2]
[420090878,1775664646844,-245.65,0.00013699,2]
[420090879,1775664646855,-204.71,0.00013699,2]
[420090880,1775664646866,-162.60419222,0.00013699,2]
[420090881,1775664646878,-501.46029237,0.00013699,2]
[420090882,1775664646889,-500.0,0.00013699,2]
[420090883,1775664646900,-500.0,0.00013699,2]
[420090884,1775664646910,-500.0,0.00013699,2]
[420090885,1775664646921,-500.0,0.00013699,2]
[420090886,1775664646932,-500.0,0.00013699,2]
[420090887,1775664646942,-500.0,0.00013699,2]
[420090888,1775664646952,-500.0,0.00013699,2]
[420090889,1775664646963,-500.0,0.00013699,2]
[420090890,1775664646973,-500.0,0.00013699,2]
[420090891,1775664646983,-500.0,0.00013699,2]
[420090892,1775664646994,-500.0,0.00013699,2]
[420090893,1775664647005,-500.0,0.00013699,2]
[420090894,1775664647016,-500.0,0.00013699,2]
[420090895,1775664647026,-500.27274026,0.00013699,2]
[420090896,1775664647036,-308.60154884,0.00013699,2]
[420090897,1775664647046,-501.53334874,0.00013699,2]
[420090898,1775664647056,-165.08001948,0.00013699,2]
[420090899,1775664647066,-500.0,0.00013699,2]
[420090900,1775664647076,-500.0,0.00013699,2]
[420090901,1775664647086,-500.0,0.00013699,2]
[420090902,1775664647097,-500.0,0.00013699,2]
[420090903,1775664647107,-500.0,0.00013699,2]